Workbook

Sheet Cover PageFLASH DRIVE BQ CL 133
A1: PROVINCIAL ADMINISTRATION OF KWAZULU-NATAL
A2: DEPARTMENT OF PUBLIC WORKS
A10: BILLS OF QUANTITIES
A12: with GCC for Construction Works - Second Edition 2010
A14: RETURNABLE DOCUMENT
A15: FLASH DRIVE
A16: PHASE 14: STORM DAMAGED PROGRAMME: REPAIRS AND RENOVATIONS TO STORM DAMAGED SCHOOLS THROUGHOUT THE PROVINCE OF KWAZULU-NATAL: MIDLANDS REGION: CLUSTER 133: DALALA PRIMARY SCHOOL - OPEN BIDS.
A17: SCHOOL NAME | B17: WIMS NO. | C17: CONTRACT PERIOD | D17: TYPE OF CONTRACT
A18: DALALA PRIMARY SCHOOL | B18: 063803 | C18: 12 CALENDAR MONTHS | D18: OPEN
A21: Engineer/Principal Agent | C21: Principal Agent/Programme Manager
A22: VNA Consulting (Pty) Ltd | C22: VNA Consulting (Pty) Ltd
A23: P.O Box 70803 | C23: P.O Box 70803
A24: Overport | C24: =A24 -> Overport
A25: Durban | C25: Durban
A26: 4067 | C26: 4067
A27: 031 -700 2500 - Tel Number | C27: 031 - 700 2500 - Tel Number
A28: 031 - 940 4243 - Fax Number | C28: 031 - 940 4243 - Fax Number
A29: anisa.vaid@vnac.co.za | C29: anisa.vaid@vnac.co.za
A31: Employer: | C31: Region:
A32: Head: Public Works | C32: Head Public Works: Operations
A33: KZN Department of Public Works | C33: KZN Department of Public Works
A34: Private Bag X 9041 | C34: =A34 -> Private Bag X 9041
A35: Pietermaritzburg | C35: Pietermaritzburg
A36: 3200 | C36: 3200
A37: Tel Number: 033 - 355 5569 | C37: Tel Number: | D37: 033 - 355 5569
A38: Fax Number: N/A | C38: Fax Number: | D38: N/A
A40: Bid Number: ZNTL04781W | C40: Project Code: | D40: 063803
A41: CIDB Grading 5GB or higher | C41: Document Date: | D41: As per Tender Advert
A42: ECDP Number: N/A | C42: Contract Period: | D42: 12 Calendar Months
A44: Bidding Entity:
A45: CIDB Registration number:
A46: Central Suppliers Database Registration Number:

Sheet SDS-PH14-DALALA
A1: PHASE 14: STORM DAMAGED PROGRAMME: REPAIRS AND RENOVATIONS TO STORM DAMAGED SCHOOLS THROUGHOUT THE PROVINCE OF KWAZULU-NATAL: MIDLANDS REGION: CLUSTER 133: DALALA PRIMARY SCHOOL - OPEN BIDS.
A2: SCHOOL NAME | C2: WIMS NO. | D2: CONTRACT PERIOD | F2: TYPE OF CONTRACT
A3: ='Cover PageFLASH DRIVE BQ CL 133'!A18 -> DALALA PRIMARY SCHOOL | C3: ='Cover PageFLASH DRIVE BQ CL 133'!B18 -> 063803 | D3: ='Cover PageFLASH DRIVE BQ CL 133'!C18 -> 12 CALENDAR MONTHS | F3: OPEN TENDER
A4: ='[1]Cover PageFLASH DRIVE BQ CL 127'!A44 -> Bidding Entity: | C4: ='Cover PageFLASH DRIVE BQ CL 133'!B44 -> 0
A5: BIDDERS TO NOTE THAT ALL FIELDS HIGHLIGTHED IN YELLOW TO BE FILLED IN ONLY
A6: ITEM NO | B6: DESCRIPTION | C6: UNIT | D6: QUANTITY | E6: RATE | F6: AMOUNT
B8: SECTION 1
B9: BILL NO. 1 PRELIMINARIES AND GENERAL (PROVISIONAL)
B11: See C2.2 - Preliminaries for GCC for Construction works - 2nd Edition (2010)
A13: 1 | B13: Preliminaries | C13: SUM | D13: 1 | F13: =D13*E13 -> 0
B14: Total for Section No. 1: Bill No. 1 | F14: =SUM(F13) -> 0
B16: SECTION 2
B17: BILL NO. 1 : ALTERATIONS
B19: (CPAP WORK GROUP 102 UNLESS OTHERWISE STATED).
B21: For Preambles refer to the relevant Clauses in the ASAQS Model Preambles for Trades 2008 and Supplementary Preambles which is incorporated in these Bills of Quantities.
B23: SUPPLEMENTARY PREAMBLES
B25: NOTE:
B27: Rates are to include for removal of all items unless otherwise described.
B29: View site
B31: Before submitting his tender the contractor shall visit the site and satisfy himself as to the nature and extent of the work to be done and the value of the materials contained in the buildings or portions of the buildings to be demolished. No claim for any variations of the contract sum in respect of the nature and extent of the work or of inferior or damaged materials will be entertained.
B33: Work and materials
B35: The work to be done and the materials to be used in the works on site are to be similar to those specified in the new work so as they apply.
B37: Old materials
B39: Old materials specified to be handed over are to be carefully made good and stored on the site where directed.
B41: Old materials to be carted away
B43: Old materials from alterations except where described to be re-used or handed over, as well as rubbish, etc. must be regularly carted from the site and not be allowed to accumulate on or around the site.
B45: Demolitions
B47: The items shall be reserved and remain the property of the employer and will be removed from the building by the contractor and handed over to the employer prior to the commencement of the demolitions. Should the tenderer have doubts concerning any of these items he shall seek clarification from the Principal Agent.
B49: Leave site clean and free of rubbish
B51: The contractor shall progressively during the works and at completion collect and cart away all materials and debris resulting from the demolitions and also all earth, soil and rubbish.
B53: Block Notation
B55: Note: For the purpose of tendering only the total quantity shall be used in calculating the amount for inclusion in the tender at the tendered rates. Block A : Admin Block and Classrooms Block B : 7 Classroom Block Block C :7 Classroom Block Block D : Guard house
B57: General
B59: The contractor shall carry out the whole of the works with as little mess and noise as possible and with a minimum of disturbance to adjoining premises and their tenants. He shall provide proper protection and provide, erect and remove when directed, any temporary tarpaulins that may be necessary during the progress of the works, all to the satisfaction of the principal agent
B61: Water supply pipes and other piping that may be encountered and found necessary to disconnect or cut, shall be effectually stopped off or grubbed up and removed, and any new connections that may be necessary shall be made with proper fittings, to the satisfaction of the principal agent.
B63: Doors, fanlights, fittings, frames, linings, etc. which are to be re-used shall be thoroughly overhauled before refixing including taking off, easing and rehanging, cramping up, re-wedging as required and making good cramps, dowels, etc., and easing, oiling, adjusting and repairing ironmongery as necessary, replacing any glass damaged in removal or subsequently and stopping up all nail and screw holes with tinted plastic wood to match timber, unless otherwise described. Re-painting or re-varnishing is given separately.
B65: Prices for taking out of doors, windows, etc. shall include for removal of all beads, architraves, ironmongery, etc.
B67: Prices for taking out and removing doors and frames shall include for removing door stops, cabin hooks, etc. and making good floor and wall finishes to match existing.
B69: With regard to building up of openings in existing walls, cement screeds and pavings, granolithic, tops of walls, etc., shall be levelled and prepared for raising of brickwork.
B71: Making good of finishes shall include making good of the brick and concrete surfaces onto which the new finishes are applied, where necessary.
B73: The contractor will be held responsible for any damage to persons and property and for the safety of the structures and he is to allow for protecting and indemnifying persons using the existing buildings from injury by virtue of the building operations, including providing necessary barriers, signs, etc.
B75: The contractor will be required to take all dimensions affecting the existing buildings on the site and he will be held solely responsible for the accuracy of all such dimensions where used in the manufacture of new items (doors, windows, fittings, etc.).
B77: Rates are deemed to include cart away and/or disposal at an approved dump site.
B79: Hoarding, etc.:
A81: 1 | B81: Shade cloth hoarding 1.8m high above natural ground level, including 300mm x 300mm x 300mm deep base, including 15Mpa/19mm mass concrete bases, excavation, backfilling etc., fixed to intermediate post at 3m centres. | C81: m | D81: 144 | F81: =D81*E81 -> 0
B83: REMOVAL OF EXISTING WORK.
B85: Breaking, removing and carting away:
A87: 2 | B87: 2450 x 2450 x 1000mm deep water tank stand. | C87: No | D87: 3 | F87: =D87*E87 -> 0
A89: 3 | B89: 100mm Thick unreinforced concrete surface beds, paving, etc. | C89: m2 | D89: =373+162 -> 535 | F89: =D89*E89 -> 0
A91: 4 | B91: Unreinforced concrete steps. | C91: m3 | D91: 1 | F91: =D91*E91 -> 0
B93: Removal of existing material under slab:
A95: 5 | B95: Excavate and cart away 150mm thick material under slab. | C95: m3 | D95: 12 | F95: =D95*E95 -> 0
B97: Breaking down and removing brickwork, etc.:
A99: 6 | B99: One block walls. | C99: m2 | D99: 52 | F99: =D99*E99 -> 0
B101: Taking out and removing doors and steel frames:
A103: 7 | B103: Timber single door 813 x 2032mm high overall and steel frame from one brick wall. | C103: No | D103: 9 | F103: =D103*E103 -> 0
B105: Taking out and removing doors from existing frames:
A107: 8 | B107: Timber single door 813 x 2032mm high overall. | C107: No | D107: 14 | F107: =D107*E107 -> 0
B109: Taking down and removing roofs, floors, panelling, ceilings, partitions, etc.:
A111: 9 | B111: Timber trusses and existing fittings. | C111: No | D111: 4 | F111: =D111*E111 -> 0
A113: 10 | B113: Cut back existing trusses to walkway and prepare for splicing. | C113: m | D113: 62 | F113: =D113*E113 -> 0
A115: 11 | B115: Timber beam. | C115: m | D115: 109 | F115: =D115*E115 -> 0
A117: 12 | B117: Corrugated metal roof sheeting including ridge capping, purlins, battens, polyclosers, etc. | C117: m2 | D117: 8 | F117: =D117*E117 -> 0
A119: 13 | B119: Fibre-cement ceilings including cornices, timber brandering, etc. | C119: m2 | D119: 75 | F119: =D119*E119 -> 0
A121: 14 | B121: Remove existing roof screws. | C121: No | D121: 2940 | F121: =D121*E121 -> 0
A123: 15 | B123: Fibre cement barge boards including all fittings. | C123: m | D123: 49 | F123: =D123*E123 -> 0
A125: 16 | B125: Fibre cement fascia boards including all fittings. | C125: m | D125: 191 | F125: =D125*E125 -> 0
A127: 17 | B127: Gutters including fittings. | C127: m | D127: 191 | F127: =D127*E127 -> 0
A129: 18 | B129: Downpipes including fittings. | C129: m | D129: 30 | F129: =D129*E129 -> 0
A131: 19 | B131: Existing chalk boards. | C131: No | D131: 10 | F131: =D131*E131 -> 0
A133: 20 | B133: Existing pinning boards. | C133: No | D133: 4 | F133: =D133*E133 -> 0
A135: 21 | B135: Steel posts to walkways. | C135: No | D135: 2 | F135: =D135*E135 -> 0
A137: 22 | B137: Existing steel burglar gates. | C137: No | D137: 2 | F137: =D137*E137 -> 0
B139: Taking out/off and removing glass and mirrors.
A141: 23 | B141: Glass from steel windows, including cleaning out rebates and preparing for new glass (new glass elsewhere measured). | C141: m2 | D141: 28 | F141: =D141*E141 -> 0
B143: Break down and remove brickwork and make good to wall and floor:
A145: 24 | B145: One brick/block wall to walkway. | C145: m2 | D145: 12 | F145: =D145*E145 -> 0
A147: 25 | B147: Header course for brick wall. | C147: m | D147: 8 | F147: =D147*E147 -> 0
B149: Taking out and removing brickwork:
A151: 26 | B151: One brick wall in beamfilling. | C151: m2 | D151: 6 | F151: =D151*E151 -> 0
B153: Structural Repairs.
B155: Brick/Block stitching:
A157: 27 | B157: Hack off existing plaster, a minimum of 400mm of both sides of the crack. Cut into existing mortar lines, 400mm on both sides of the crack. Place one Y8mm diameter bar, 800mm long, centred on the crack and caulk in with fresh mortar in every course to the full extent of the crack. Finish off by plastering and painting. | C157: m | D157: 32 | F157: =D157*E157 -> 0
B159: Hacking up/off and removing granolithic, screeds, plaster etc. from concrete or brickwork and preparing surfaces for new screeds, plaster, etc.:
A161: 28 | B161: Plaster from walls in patches. | C161: m2 | D161: 21 | F161: =D161*E161 -> 0
A163: 29 | B163: Average 25mm screed. | C163: m2 | D163: 532 | F163: =D163*E163 -> 0
A165: 30 | B165: Average 25mm screed from floors in patches. | C165: m2 | D165: 43 | F165: =D165*E165 -> 0
B167: TEMPORARY PARKHOMES
B169: Note: Rates for park homes to include standard windows, burglar bars, curtains and tracks, two tier steps for access, lighting fittings and black boards size: 1200 x 4800mm.
B171: M-Projects or other approved temporary park home units:
A173: 31 | B173: Provide standard classroom size minimum 7 x 7m or nearest size temporary park homes on site for temporary educational facilities during the construction phase as herewith measured for 12 months, including levelling, two tier steps, positioning on site and connections to an electrical supply. NOTE - The tenderer rate should be inclusive of the rental of units for 12 months. | C173: No | D173: 7 | F173: =D173*E173 -> 0
A175: 32 | B175: Provision of electrical compliance certificates for park homes. | C175: No | D175: 7 | F175: =D175*E175 -> 0
A177: 33 | B177: Transport to and from site of park homes as per distance between supplier and site. | C177: No | D177: 7 | F177: =D177*E177 -> 0
B179: Desludging septic tank by a specialist including disposal:
A181: 34 | B181: Septic tank overall size 1000 x 1000 x 1000mm. | C181: m3 | D181: 84 | F181: =D181*E181 -> 0
A183: 35 | B183: Demolish portion of block B size: 32m x 9,2m including roof, trusses, foundations etc. | C183: Item | D183: 1 | F183: =D183*E183 -> 0
B186: Total for Section 2: Bill No. 1 | F186: =SUM(F81:F184) -> 0
B188: BILL NO.2 : EARTHWORKS (PROVISIONAL)
B190: SUPPLEMENTARY PREAMBLES
B192: Nature of ground:
B194: The nature of the ground is assumed to be loose sandy material, therefore earth, but possibly interspersed with hard rock or soft rock.
B196: Carting away of excavated material:
B198: Descriptions of carting away of excavated material shall be deemed to include loading excavated material onto trucks directly from the excavations or, alternatively, from stock piles situated on the building site.
B200: Block Notation
B202: Note: For the purpose of tendering only the total quantity shall be used in calculating the amount for inclusion in the tender at the tendered rates. Block A : Admin Block and Classrooms Block B : 7 Classroom Block Block C :7 Classroom Block Block D : Guard house
B204: EXCAVATION AND FILLING OTHER THAN BULK
B206: Excavation in earth not exceeding 2m deep:
A208: 1 | B208: Trenches. | C208: m3 | D208: 28 | F208: =D208*E208 -> 0
B210: Back excavation of vertical sides of excavation in earth for working space including backfilling compacted to 95% Mod AASHTO density:
A212: 2 | B212: Not exceeding 0,5m deep. | C212: m2 | D212: 38 | F212: =D212*E212 -> 0
B214: Extra over excavations other than bulk in earth for excavation in:
A216: 3 | B216: Soft rock. | C216: m3 | D216: 6 | F216: =D216*E216 -> 0
A218: 4 | B218: Hard rock. | C218: m3 | D218: 6 | F218: =D218*E218 -> 0
B220: Risk of collapse of excavations other than bulk:
A222: 5 | B222: Sides of trench and hole excavations not exceeding 1,5m deep. | C222: m2 | D222: 38 | F222: =D222*E222 -> 0
B224: KEEPING EXCAVATIONS FREE OF WATER
B226: Keeping excavations free of water:
A228: 6 | B228: Keeping excavations free of all water other than subterranean water. | C228: Item | D228: 1 | F228: =D228*E228 -> 0
B230: CARTING AWAY
B232: Extra over all excavations for loading, carting and dumping surplus excavated material (no allowance made for increase in bulk):
A234: 7 | B234: Surplus material from excavations and/or stock piles on site to a dumping site to be located by the contractor or as directed by the engineer. | C234: m3 | D234: 22 | F234: =D234*E234 -> 0
B236: EARTH FILLING, etc.
B238: Earth filling of G7 quality material supplied by the Contractor compacted to 95% Mod AASHTO density:
A240: 8 | B240: Under surface beds, etc. | C240: m3 | D240: 32 | F240: =D240*E240 -> 0
B242: Compaction of surfaces:
A244: 9 | B244: Compaction of ground surface under floors, etc. including scarifying for a depth of 150mm, breaking down oversize material, adding suitable material where necessary and compacting to 93% Mod AASHTO density. | C244: m2 | D244: 288 | F244: =D244*E244 -> 0
B246: TESTS
B248: Prescribed density tests on filling:
A250: 10 | B250: Modified AASHTO Density test. | C250: No | D250: 1 | F250: =D250*E250 -> 0
B252: SOIL POISONING
B254: Approved brand of anti-termite soil poison applied by a Registered Pest Control company and guaranteed against termite infestation for ten years:
A256: 11 | B256: Under floors, etc., including forming and poisoning shallow furrows against foundation walls, etc., filling in furrows and ramming. | C256: m2 | D256: 288 | F256: =D256*E256 -> 0
A258: 12 | B258: To bottom and sides of trenches. | C258: m2 | D258: 168 | F258: =D258*E258 -> 0
B260: Total for Section 2: Bill No. 2 | F260: =SUM(F208:F259) -> 0
B262: BILL NO. 3 : CONCRETE, FORMWORK AND REINFORCEMENT
B264: SUPPLEMENTARY PREAMBLES
B266: The Tenderer is referred to the relevant Clauses in the Standard Preambles to All Trades and to the Supplementary Preambles which are incorporated in these Bills of Quantities.
B268: Cost of tests:
B270: The costs of making, storing and testing of concrete test cubes as required under clause 7 'Tests' of SABS 1200 G shall include the cost of providing cube moulds necessary for the purpose, for testing costs and for submitting reports on the tests.
B272: Formwork:
B274: Descriptions of formwork shall be deemed to include use and waste only (except where described as left in or permanent), for fitting together in the required forms, wedging, plumbing and fixing to true angles and surfaces as necessary to ensure easy release.
B276: The vertical strutting shall be carried down to such construction as is sufficiently strong to afford the required support without damage and shall remain in position until the newly constructed work is able to support itself.
B278: Formwork to soffits of solid slabs etc., shall be deemed to be to slabs not exceeding 250mm thick unless otherwise described.
B280: Block Notation
B282: Note: For the purpose of tendering only the total quantity shall be used in calculating the amount for inclusion in the tender at the tendered rates. Block A : Admin Block and Classrooms Block B : 7 Classroom Block Block C :7 Classroom Block Block D : Guard house
B284: REINFORCED CONCRETE
B286: 30MPa/19mm Reinforced concrete cast in/on formwork (Provisional):
A288: 1 | B288: Surface beds. | C288: m3 | D288: 29 | F288: =D288*E288 -> 0
A290: 2 | B290: Apron. | C290: m3 | D290: 9 | F290: =D290*E290 -> 0
A292: 3 | B292: Concrete stairs. | C292: m3 | D292: 16 | F292: =D292*E292 -> 0
A294: 4 | B294: Walkway. | C294: m3 | D294: 13 | F294: =D294*E294 -> 0
B296: TEST BLOCKS
B298: Test blocks:
A300: 5 | B300: Allow for all necessary concrete test cubes size 150 x 150 x 150mm cast from batches of concrete required for the entire contract as specified, made, stored, cured and tested in accordance with SABS Methods 861 and 863, including use of approved cube mould. | C300: Sets | D300: 3 | F300: =D300*E300 -> 0
B302: FORMWORK
B304: ROUGH FORMWORK (DEGREE OF ACCURACY II) (CPAP WORK GROUP NO. 111)
B306: Rough Formwork to Sides of:
A308: 6 | B308: Edges, risers, ends and reveals not exceeding 300mm high or wide. | C308: m | D308: 126 | F308: =D308*E308 -> 0
B310: CONCRETE SUNDRIES
B312: Finishing top surfaces of concrete smooth with a wood float:
A314: 7 | B314: Surface beds, slabs, etc. | C314: m2 | D314: 288 | F314: =D314*E314 -> 0
B316: MOVEMENT JOINTS, etc.
B318: Movement Joints between vertical concrete and brick surfaces:
A320: 8 | B320: 10mm softboard isolation joints not exceeding 300mm wide. | C320: m | D320: 68 | F320: =D320*E320 -> 0
B322: Saw cut joints:
A324: 9 | B324: 3 x 12mm Saw cut joints in top of concrete. | C324: m | D324: 36 | F324: =D324*E324 -> 0
B326: REINFORCEMENT
B328: High and Mild tensile steel reinforcement to structural concrete work:
A330: 10 | B330: Various diameter bars. | C330: t | D330: 2 | F330: =D330*E330 -> 0
B332: Fabric reinforcement:
A334: 11 | B334: Type 193 fabric reinforcement in concrete surface beds, slabs, etc. | C334: m2 | D334: 1075 | F334: =D334*E334 -> 0
B336: Total for Section 2: Bill No. 3 | F336: =SUM(F287:F335) -> 0
B338: BILL NO. 4 : MASONRY
B340: (CPAP WORK GROUP 118 UNLESS OTHERWISE STATED).
B342: For Preambles refer to the relevant Clauses in the ASAQS Model Preambles for Trades 2008 and Supplementary Preambles which is incorporated in these Bills of Quantities.
B344: Block Notation
B346: Note: For the purpose of tendering only the total quantity shall be used in calculating the amount for inclusion in the tender at the tendered rates. Block A : Admin Block and Classrooms Block B : 7 Classroom Block Block C :7 Classroom Block Block D : Guard house
B348: BRICKWORK
B350: Sizes in descriptions:
B352: Where sizes in descriptions are given in brick units, 'one brick' shall represent the length and 'half brick' the width of a brick.
B354: Bagging and sealing:
B356: Walls in two skins described as 'bagged and sealed' shall be deemed to include having the outer face of the inner skin bagged with 1:6 cement and sand mixture and sealed with two coats 'Brixeal' bitumen emulsion waterproofing coating.
B358: Face bricks:
B360: Bricks shall be ordered timeously to obtain uniformity in size and colour.
B362: Pointing:
B364: Descriptions of recessed pointing to fair face brickwork and face brickwork shall be deemed to include square recessed, hollow recessed, weathered pointing, etc.
B366: BRICKWORK IN FOUNDATIONS
A368: 1 | B368: One brick walls. | C368: m2 | D368: 201 | F368: =D368*E368 -> 0
B370: BRICKWORK IN SUPERSTRUCTURE
B372: Brickwork of NFP bricks (7 Mpa nominal compressive strength) in Class II mortar:
A374: 2 | B374: Half brick walls in beamfilling. | C374: m2 | D374: 19 | F374: =D374*E374 -> 0
A376: 3 | B376: One brick wall. | C376: m2 | D376: 53 | F376: =D376*E376 -> 0
B378: BRICKWORK SUNDRIES
B380: Brickwork reinforcement:
A382: 4 | B382: 75mm Wide reinforcement built in horizontally. | C382: m | D382: 104 | F382: =D382*E382 -> 0
A384: 5 | B384: 150mm Wide reinforcement built in horizontally. | C384: m | D384: 188 | F384: =D384*E384 -> 0
B386: FACE BRICKWORK
B388: Corobrik "Montana Travertine FBA" or equal and other approved face bricks in stretc.her bond with recessed horizontal and vertical joints:
A390: 6 | B390: Extra over brickwork for brick-on-edge header course. | C390: m | D390: 13 | F390: =D390*E390 -> 0
B392: Total for Section 2: Bill No. 4 | F392: =SUM(F367:F391) -> 0
... 457 more rows
